fUST/lending_fUST_20250923
["ID","MTS","AMOUNT","RATE_DAILY","PERIOD"]
[387171984,1758606644491,-1994.5,0.000221,3]
[387171985,1758606644500,-187.78006524,0.00022109,2]
[387171986,1758606644509,-480.0,0.00022232,2]
[387171987,1758606644518,-2545.8,0.00022332,2]
[387171988,1758606644527,-1845.75,0.00022337,2]
[387171989,1758606644536,-480.0,0.00022359,2]
[387171990,1758606644545,-606.80374591,0.00022359,2]
[387171991,1758606644554,-480.0,0.00022359,2]
[387171992,1758606644563,-480.0,0.00022359,2]
[387171993,1758606644572,-548.63,0.00022359,2]
[387171994,1758606644582,-1337.25,0.0002236,2]
[387171995,1758606644590,-165.329153,0.0002241,2]
[387171997,1758606644600,-187.70908885,0.000225,2]
[387171998,1758606644608,-480.0,0.00022506,2]
[387172000,1758606644618,-1003.6266216,0.00022521,2]
[387172002,1758606644627,-1002.25168921,0.00022521,2]
[387172004,1758606644636,-1002.43677345,0.00022521,2]
[387172006,1758606644645,-2545.8,0.00022606,2]
[387172008,1758606644655,-160.0,0.0002262,2]
[387172010,1758606644664,-500.0,0.00022625,2]
[387172012,1758606644673,-480.0,0.00022633,2]
[387172014,1758606644682,-480.0,0.00022633,2]
[387172016,1758606644691,-480.0,0.00022633,2]
[387172018,1758606644701,-548.63,0.00022633,2]
[387172020,1758606644711,-1337.25,0.00022634,2]
[387172022,1758606644720,-480.0,0.0002278,2]
[387172024,1758606644730,-244.88621465,0.00022788,2]
[387172026,1758606644739,-168.0,0.00022806,2]
[387172028,1758606644748,-1016.31236467,0.0002284,2]
[387172030,1758606644757,-2545.8,0.0002288,2]
[387172032,1758606644767,-211.63,0.00022904,2]
[387172034,1758606644777,-480.0,0.00022907,2]
[387172036,1758606644786,-480.0,0.00022907,2]
[387172037,1758606644798,-480.0,0.00022907,2]
[387172039,1758606644807,-548.63,0.00022907,2]
[387172041,1758606644816,-1337.25,0.00022908,2]
[387172043,1758606644825,-1999.999999,0.00023,2]
[387172045,1758606644834,-500.0,0.00023002,2]
[387172047,1758606644845,-168.0,0.00023029,2]
[387172049,1758606644854,-480.0,0.00023054,2]
[387172051,1758606644863,-341.24173601,0.0002306,2]
[387172053,1758606644874,-341.24173601,0.0002306,2]
[387172055,1758606644884,-2892.98053894,0.00023116,2]
[387172057,1758606644893,-2545.8,0.00023154,2]
[387172059,1758606644903,-260.0,0.00023168,2]
[387172061,1758606644912,-480.0,0.00023181,2]
[387172063,1758606644922,-255.4,0.00023181,2]
[387172065,1758606644931,-480.0,0.00023181,2]
[387172067,1758606644940,-548.63,0.00023181,2]
[387172069,1758606644951,-1337.25,0.00023182,2]
[387172071,1758606644961,-341.24173601,0.00023198,2]
[387172073,1758606644970,-341.24173601,0.00023198,2]
[387172075,1758606644979,-168.0,0.00023221,2]
[387172077,1758606644989,-501.16715838,0.00023243,8]
[387172079,1758606645005,-336.28738218,0.00023269,2]
[387172081,1758606645014,-2356.28,0.00023287,2]
[387172083,1758606645024,-480.0,0.00023328,2]
[387172085,1758606645033,-179.71246006,0.0002333,2]
[387172087,1758606645042,-341.24173601,0.00023337,2]
[387172089,1758606645051,-2545.8,0.00023428,2]
[387172091,1758606645061,-480.0,0.00023455,2]
[387172093,1758606645070,-312.94,0.00023455,2]
[387172104,1758606645168,-548.63,0.00023455,2]
[387172106,1758606645179,-1337.25,0.00023456,2]
[387172108,1758606645197,-341.24173601,0.00023476,7]
[387172110,1758606645207,-341.24173601,0.00023476,7]
[387172112,1758606645216,-341.24173601,0.00023476,7]
[387172114,1758606645225,-500.0,0.00023483,2]
[387172116,1758606645241,-238.34658366,0.00023483,2]
[387172118,1758606645251,-500.0,0.00023483,2]
[387172120,1758606645260,-229.0,0.00023489,2]
[387172122,1758606645270,-514.96993847,0.00023509,2]
[387172124,1758606645279,-229.0,0.00023518,2]
[387172126,1758606645288,-229.0,0.00023539,2]
[387172127,1758606645297,-168.0,0.00023548,2]
[387172129,1758606645307,-336.28738218,0.00023549,2]
[387172131,1758606645316,-336.28738218,0.00023549,2]
[387172133,1758606645326,-480.0,0.00023602,2]
[387172135,1758606645335,-341.24173601,0.00023615,7]
[387172138,1758606645346,-341.24173601,0.00023615,7]
[387172140,1758606645355,-168.0,0.00023616,2]
[387172141,1758606645365,-231.37580454,0.00023632,2]
[387172143,1758606645374,-151.0,0.00023634,4]
[387172145,1758606645383,-168.0,0.00023676,2]
[387172147,1758606645393,-2545.8,0.00023702,2]
[387172149,1758606645402,-360.0,0.00023716,2]
[387172151,1758606645411,-168.0,0.00023727,2]
[387172153,1758606645421,-480.0,0.00023729,2]
[387172155,1758606645431,-548.63,0.00023729,2]
[387172157,1758606645440,-1337.25,0.0002373,2]
[387172159,1758606645449,-244.88621465,0.00023748,7]
[387172161,1758606645459,-168.0,0.00023816,2]
[387172163,1758606645468,-336.28738218,0.00023829,7]
[387172165,1758606645478,-229.0,0.00023831,2]
[387172167,1758606645487,-1016.31236467,0.00023834,2]
[387172169,1758606645497,-503.46180757,0.00023873,2]
[387172171,1758606645507,-271.2135983,0.00023873,2]
[387172173,1758606645515,-500.0,0.00023873,2]
[387172175,1758606645525,-425.3072389,0.00023873,2]
[387172177,1758606645534,-500.0,0.00023873,2]
[387172179,1758606645543,-500.0,0.00023873,2]
[387172181,1758606645553,-480.0,0.00023876,2]
[387172183,1758606645562,-500.0,0.0002388,2]
[387172185,1758606645572,-341.24173601,0.00023892,14]
[387172187,1758606645581,-200.88282832,0.00023899,2]
[387172189,1758606645590,-60682.14674846,0.000239,2]
[387172197,1758606645653,-529.80097955,0.00020314,2]
[387172199,1758606645662,-253.57902045,0.0002074,2]
[387178023,1758607080679,-526.53578144,0.00019178,2]
[387178025,1758607205064,1983.77970884,0.0002924,120]
[387178034,1758607340486,163.3033376,0.00019177,2]
[387178035,1758607340512,480.0,0.00019177,2]
[387178039,1758607680025,311.41,0.00015485,2]
[387178040,1758607680298,311.41,0.00015485,2]
[387178041,1758607680559,311.38,0.00015485,2]
[387178052,1758607796862,500.0,0.000155,2]
[387178097,1758607832826,-453.78913429,0.000189,2]
[387178099,1758607832836,-269.55839326,0.00019177,2]
[387178352,1758607838844,-930.44160674,0.00019177,2]
[387178353,1758607838853,-300.0,0.00019177,2]
[387178354,1758607838863,-1265.75214958,0.00019178,2]
[387178355,1758607838955,-980.78115233,0.00019178,2]
[387178356,1758607838967,-920.0,0.00019178,2]
[387178357,1758607838979,-1306.93091665,0.00019178,2]
[387178358,1758607838990,-24.49070891,0.00019178,2]
[387178359,1758607839004,-2762.00982875,0.00019178,2]
[387178360,1758607839013,-500.0,0.000192,2]
[387178361,1758607839024,-729.84693158,0.00019833,2]
[387178362,1758607839036,-1380.14854537,0.00019833,2]
[387178374,1758607840862,-267.183561,0.00019833,2]
[387178375,1758607840934,-2622.82096205,0.00019833,2]
[387178376,1758607840944,-3449.49722353,0.000199,2]
[387178377,1758607840953,-483.10948817,0.00019971,2]
[387178378,1758607840963,-480.0,0.00019971,2]
[387178379,1758607840972,-480.0,0.00019971,2]
[387178380,1758607840982,-480.0,0.00019971,2]
[387178381,1758607840991,-480.0,0.00019971,2]
[387178382,1758607841000,-480.0,0.00019971,2]
[387178383,1758607841010,-483.53984319,0.00019971,2]
[387178384,1758607841019,-511.37738025,0.00019972,2]
[387178385,1758607841028,-482.17444326,0.00019972,2]
[387178386,1758607841038,-489.22226652,0.00019972,2]
[387178387,1758607841047,-480.0,0.00019972,2]
[387178388,1758607841056,-482.8697311,0.00019972,2]
[387178389,1758607841066,-473.75054532,0.00019972,2]
[387178390,1758607841075,-474.43647843,0.00019972,2]
[387178391,1758607841085,-480.0,0.00019972,2]
[387178392,1758607841095,-183.94532521,0.00019972,2]
[387178393,1758607841105,-480.0,0.00019972,2]
[387178394,1758607841114,-480.0,0.00019972,2]
[387178395,1758607841123,-480.0,0.00019972,2]
[387178396,1758607841132,-482.47855104,0.00019972,2]
[387178397,1758607841142,-484.13091357,0.00019972,2]
[387178398,1758607841151,-480.0,0.00019972,2]
[387178399,1758607841160,-402.61848628,0.00019972,2]
[387178400,1758607841170,-480.0,0.00019972,2]
[387178401,1758607841179,-480.0,0.00019972,2]
[387178402,1758607841189,-480.0,0.00019972,2]
[387178403,1758607841198,-480.0,0.00019972,2]
[387178404,1758607841207,-480.0,0.00019972,2]
[387178405,1758607841216,-480.0,0.00019972,2]
[387178406,1758607841226,-480.0,0.00019972,2]
[387178407,1758607841236,-480.0,0.00019972,2]
[387178408,1758607841250,-597.14,0.00019972,2]
[387178409,1758607841260,-480.0,0.00019972,2]
[387178410,1758607841271,-480.0,0.00019972,2]
[387178411,1758607841280,-500.0,0.00019973,2]
[387178412,1758607841291,-501.01309704,0.00019973,2]
[387178413,1758607841300,-500.0,0.00019973,2]
[387178414,1758607841309,-500.0,0.00019973,2]
[387178415,1758607841321,-500.0,0.00019985,2]
[387178416,1758607841331,-500.0,0.00019985,2]
[387178417,1758607841340,-500.0,0.00019985,2]
[387178418,1758607841349,-500.0,0.00019985,2]
[387178419,1758607841359,-500.0,0.00019985,2]
[387178420,1758607841368,-500.0,0.00019985,2]
[387178421,1758607841378,-491.77160235,0.00019985,2]
[387178422,1758607841387,-500.0,0.00019985,2]
[387178423,1758607841397,-500.0,0.00019985,2]
[387178424,1758607841406,-500.0,0.00019985,2]
[387178425,1758607841415,-500.0,0.00019985,2]
[387178426,1758607841425,-500.0,0.00019985,2]
[387178427,1758607841434,-500.0,0.00019985,2]
[387178428,1758607841443,-500.0,0.00019985,2]
[387178429,1758607841453,-500.0,0.00019985,2]
[387178430,1758607841462,-500.0,0.00019985,2]
[387178431,1758607841472,-253.3205133,0.00019985,2]
[387178432,1758607841482,-285.56993572,0.00019985,2]
[387178433,1758607841491,-500.0,0.00019985,2]
[387178434,1758607841500,-500.0,0.00019985,2]
[387178435,1758607841510,-500.0,0.00019985,2]
[387178436,1758607841519,-500.0,0.00019985,2]
[387178437,1758607841528,-500.0,0.00019985,2]
[387178438,1758607841537,-500.0,0.00019985,2]
[387178439,1758607841547,-500.0,0.00019985,2]
[387178440,1758607841556,-500.0,0.00019985,2]
[387178441,1758607841566,-500.0,0.00019985,2]
[387178442,1758607841575,-500.0,0.00019985,2]
[387178443,1758607841585,-500.0,0.00019985,2]
[387178444,1758607841596,-500.0,0.00019985,2]
[387178445,1758607841607,-500.0,0.00019985,2]
[387178446,1758607841616,-500.0,0.00019985,2]
[387178447,1758607841626,-500.0,0.00019985,2]
[387178448,1758607841637,-500.0,0.00019985,2]
[387178449,1758607841646,-500.0,0.00019985,2]
[387178450,1758607841655,-500.0,0.00019985,2]
[387178451,1758607841665,-500.0,0.00019985,2]
[387178452,1758607841674,-500.0,0.00019985,2]
[387178453,1758607841684,-500.0,0.00019985,2]
[387178454,1758607841693,-500.0,0.00019985,2]
[387178455,1758607841703,-500.0,0.00019985,2]
[387178456,1758607841713,-500.0,0.00019985,2]
[387178457,1758607841722,-500.0,0.00019985,2]
[387178458,1758607841732,-500.0,0.00019985,2]
[387178459,1758607841741,-500.0,0.00019985,2]
[387178460,1758607841750,-500.0,0.00019985,2]
[387178461,1758607841759,-500.0,0.00019985,2]
[387178462,1758607841769,-381.08394346,0.00019985,2]
[387178463,1758607841780,-500.0,0.00019985,2]
[387178464,1758607841789,-500.0,0.00019985,2]
[387178465,1758607841799,-500.0,0.00019985,2]
[387178466,1758607841808,-500.0,0.00019985,2]
[387178467,1758607841818,-500.0,0.00019985,2]
[387178468,1758607841828,-500.0,0.00019985,2]
[387178469,1758607841837,-500.0,0.00019985,2]
[387178470,1758607841846,-500.0,0.00019985,2]
[387178471,1758607841855,-500.0,0.00019985,2]
[387178472,1758607841865,-500.0,0.00019985,2]
[387178473,1758607841875,-500.0,0.00019985,2]
[387178474,1758607841885,-500.0,0.00019985,2]
[387178475,1758607841895,-500.0,0.00019985,2]
[387178476,1758607841904,-500.0,0.00019985,2]
[387178477,1758607841913,-500.0,0.00019985,2]
[387178478,1758607841922,-500.0,0.00019985,2]
[387178479,1758607841933,-500.0,0.00019985,2]
[387178480,1758607841942,-500.0,0.00019985,2]
[387178481,1758607841952,-500.0,0.00019985,2]
[387178482,1758607841961,-500.0,0.00019985,2]
[387178483,1758607841970,-480.0,0.00019988,2]
[387178484,1758607841980,-482.83533099,0.00019988,2]
[387178485,1758607841989,-480.0,0.00019988,2]
[387178486,1758607841999,-485.53388471,0.00019988,2]
[387178487,1758607842009,-480.0,0.00019988,2]
[387178488,1758607842020,-480.0,0.00019988,2]
[387178489,1758607842034,-480.0,0.00019988,2]
[387178490,1758607842043,-480.0,0.00019988,2]
[387178491,1758607842053,-480.0,0.00019988,2]
[387178492,1758607842063,-480.0,0.00019988,2]
[387178493,1758607842073,-480.0,0.00019988,2]
[387178494,1758607842083,-480.0,0.00019988,2]
[387178495,1758607842092,-480.0,0.00019988,2]
[387178496,1758607842102,-480.0,0.00019988,2]
[387178497,1758607842111,-481.70600653,0.00019988,2]
[387178498,1758607842121,-480.0,0.00019988,2]
[387178499,1758607842131,-480.0,0.00019988,2]
[387178500,1758607842140,-480.0,0.00019988,2]
[387178501,1758607842150,-480.0,0.00019988,2]
[387178502,1758607842160,-542.82,0.00019988,2]
[387178503,1758607842170,-480.0,0.00019988,2]
[387178504,1758607842180,-480.0,0.00019988,2]
[387178505,1758607842190,-480.0,0.00019988,2]
[387178506,1758607842199,-486.69299753,0.00019988,2]
[387178507,1758607842209,-480.0,0.00019988,2]
[387178508,1758607842219,-480.0,0.00019988,2]
[387178509,1758607842229,-589.92844838,0.00019988,2]
[387178510,1758607842239,-480.0,0.00019988,2]
[387178511,1758607842251,-480.0,0.00019988,2]
[387178512,1758607842260,-480.0,0.00019988,2]
[387178513,1758607842270,-480.0,0.00019988,2]
[387178514,1758607842283,-480.0,0.00019988,2]
[387178515,1758607842405,-480.0,0.00019988,2]
[387178516,1758607842415,-500.0,0.00019989,2]
[387178517,1758607842424,-74830.92127756,0.0001999,2]
[387178518,1758607842436,-258.22,0.0001999,2]
[387178519,1758607842447,-302.38100002,0.0001999,2]
[387178520,1758607842462,-503.01188397,0.0001999,2]
[387178521,1758607842474,-607.8502835,0.0001999,2]
[387178528,1758607843736,-945.71,0.00019972,2]
[387178529,1758607843746,-490.10439157,0.00019988,2]
[387178530,1758607843755,-23497.61555495,0.0001999,2]
[387178531,1758607843764,-2396.17844826,0.00020182,2]
[387178532,1758607843774,-2569.46920639,0.00020182,2]
[387178533,1758607843784,-480.0,0.00020245,2]
[387178534,1758607843794,-480.0,0.00020245,2]
[387178535,1758607843803,-480.0,0.00020245,2]
[387178536,1758607843813,-480.0,0.00020245,2]
[387178537,1758607843822,-480.0,0.00020245,2]
[387178538,1758607843831,-491.30399677,0.00020246,2]
[387178539,1758607843841,-480.81676187,0.00020246,2]
[387178540,1758607843851,-480.0,0.00020246,2]
[387178541,1758607843860,-59.51192333,0.00020246,2]
[387178542,1758607843885,-420.48807667,0.00020246,2]
[387178543,1758607843894,-480.0,0.00020246,2]
[387178544,1758607843903,-480.0,0.00020246,2]
[387178545,1758607843913,-480.0,0.00020246,2]
[387178546,1758607843922,-480.0,0.00020246,2]
[387178547,1758607843933,-480.0,0.00020246,2]
[387178548,1758607843943,-23.31192333,0.00020246,2]
[387178549,1758607843954,-456.68807667,0.00020246,2]
[387178550,1758607843963,-404.42739185,0.00020246,2]
[387178582,1758607846792,-441.98766341,0.00019972,2]
[387178586,1758607879438,500.0,0.000155,2]
[387178589,1758607914997,269.97607501,0.000155,2]
[387178608,1758608625116,-171.68809144,0.000191,2]
[387178609,1758608625140,-80.15242356,0.000191,2]
[387178610,1758608686202,-245.5597898,0.000191,2]
[387178612,1758608760828,-302.57643837,0.000189,2]
[387178613,1758608761578,-2435.99093478,0.0001899,2]
[387178614,1758608761650,-10000.01,0.0001899,2]
[387178615,1758608761760,-10000.01,0.0001899,2]
[387178616,1758608761905,-10000.01,0.0001899,2]
[387178617,1758608762025,-10000.01,0.0001899,2]
[387178618,1758608762150,-10000.01,0.0001899,2]
[387178620,1758608770674,-300.0,0.00018989,2]
[387178621,1758608770712,-9400.01,0.0001899,2]
[387178622,1758608770800,-10000.01,0.0001899,2]
[387178623,1758608770966,-10000.01,0.0001899,2]
[387178624,1758608771110,-10000.01,0.0001899,2]
[387178632,1758608896166,-1836.09093478,0.0001899,2]
[387178633,1758608896193,-6327.82813044,0.0001899,2]
[387178723,1758609032009,-682.1689387,0.00018646,2]
[387178724,1758609032018,-253.1635064,0.00018793,2]
[387178725,1758609032027,-169.86086461,0.000189,2]
[387178726,1758609032037,-959.01657423,0.00019,2]
[387178727,1758609032094,-375.09698335,0.00019,2]
[387178756,1758609037941,-2654.69946941,0.00019,2]
[387178757,1758609037953,-174.28778664,0.000191,2]
[387178758,1758609037963,-179.34726776,0.00019287,2]
[387178759,1758609037973,-1975.5842934,0.000198,2]
[387178760,1758609037984,-1200.0,0.00019868,2]
[387178761,1758609037994,-1200.0,0.00019869,2]
[387178762,1758609038003,-3153.28597391,0.00019871,2]
[387178763,1758609038012,-195.0,0.00019879,2]
[387178764,1758609038022,-300.0,0.00019879,2]
[387178765,1758609038031,-300.0,0.00019879,2]
[387178766,1758609038040,-300.0,0.00019879,2]
[387178767,1758609038050,-300.0,0.00019879,2]
[387178768,1758609038059,-480.0,0.0001988,2]
[387178769,1758609038069,-480.0,0.0001988,2]
[387178770,1758609038079,-480.0,0.0001988,2]
[387178771,1758609038089,-480.0,0.0001988,2]
[387178772,1758609038098,-481.22689261,0.0001988,2]
[387178773,1758609038107,-480.0,0.0001988,2]
[387178774,1758609038117,-484.67561303,0.0001988,2]
[387178775,1758609038126,-480.0,0.0001988,2]
[387178776,1758609038136,-265.26729352,0.0001988,2]
[387178777,1758609038147,-27.37286066,0.0001988,2]
[387178778,1758609038156,-480.0,0.0001988,2]
[387178779,1758609038165,-484.72171065,0.0001988,2]
[387178780,1758609038175,-480.0,0.00019881,2]
[387178781,1758609038184,-241.95067781,0.00019881,2]
[387178782,1758609038193,-500.0,0.00019881,2]
[387178783,1758609038202,-480.0,0.00019881,2]
[387178784,1758609038211,-75.25275149,0.00019881,2]
[387178785,1758609038222,-404.74724851,0.00019881,2]
[387178786,1758609038231,-480.0,0.00019881,2]
[387178787,1758609038241,-480.0,0.00019881,2]
[387178788,1758609038249,-480.0,0.00019881,2]
[387178789,1758609038259,-480.0,0.00019881,2]
[387178790,1758609038268,-4768.47453171,0.00019881,2]
[387178791,1758609038279,-1669.69168357,0.00019881,2]
[387178792,1758609038290,-831.09228641,0.00019881,2]
[387178793,1758609038301,-1121.12524431,0.00019881,2]
[387178800,1758609040196,-0.01392155,0.00019881,2]
[387178813,1758609043198,-480.0,0.0001988,2]
[387178814,1758609043209,-480.0,0.0001988,2]
[387178815,1758609043218,-484.50665114,0.0001988,2]
[387178816,1758609043228,-480.0,0.0001988,2]
[387178817,1758609043237,-2396.41285783,0.00019881,2]
[387178831,1758609046040,-480.0,0.0001988,2]
[387178832,1758609046051,-480.0,0.00019881,2]
[387178833,1758609046061,-6234.7534442,0.00019881,2]
[387178834,1758609046071,-480.0,0.00019882,2]
[387178835,1758609046083,-480.0,0.00019882,2]
[387178836,1758609046093,-480.0,0.00019882,2]
[387178837,1758609046103,-402.45615771,0.00019882,2]
[387178847,1758609483341,217.99,0.00015485,2]
[387178848,1758609483610,217.99,0.00015485,2]
[387178849,1758609483889,217.99,0.00015485,2]
[387178850,1758609537835,-318.8921196,0.00018863,2]
[387178851,1758609537906,-8708.2557608,0.0001899,2]
[387178852,1758609538012,-10000.01,0.0001899,2]
[387178853,1758609538126,-10000.01,0.0001899,2]
[387178854,1758609538293,-10000.01,0.0001899,2]
[387178855,1758609538419,-10000.01,0.0001899,2]
[387178856,1758609538573,-10000.01,0.0001899,2]
[387178857,1758609538692,-10000.01,0.0001899,2]
[387178858,1758609538879,-10000.01,0.0001899,2]
[387178859,1758609539008,-10000.01,0.0001899,2]
[387178860,1758609539136,-10000.01,0.0001899,2]
[387178864,1758609718002,-689.02598373,0.000187,2]
[387178865,1758609718024,-8621.95803254,0.000187,2]
[387178868,1758609928564,-10000.01,0.00018409,2]
[387178888,1758610117326,321.51423172,0.00018,2]
[387178962,1758610233113,-500.0,0.000182,2]
[387178964,1758610233131,-220.9397034,0.00018269,2]
[387178966,1758610233141,-2157.1139187,0.00018409,2]
[387178968,1758610233151,-500.0,0.000187,2]
[387178970,1758610233160,-1285.0703167,0.00018931,2]
[387178972,1758610233170,-1291.6542392,0.0001899,2]
[387178974,1758610233180,-1200.0,0.00019108,2]
[387178976,1758610233189,-1200.0,0.00019109,2]
[387178977,1758610233199,-300.0,0.00019109,2]
[387178978,1758610233209,-300.0,0.00019109,2]
[387178979,1758610233219,-300.0,0.00019109,2]
[387178980,1758610233229,-8166.67463419,0.0001911,2]
[387178991,1758610240999,-435.0,0.0001911,2]
[387178993,1758610241150,-991.56831074,0.0001911,2]
[387178994,1758610241162,-683.88842277,0.0001911,2]
[387178995,1758610241173,-1058.23592004,0.0001911,2]
[387179028,1758610247295,-4547.02837696,0.0001911,2]
[387179029,1758610247304,-3702.7632492,0.0001911,2]
[387179030,1758610247313,-483.12663405,0.00019178,2]
[387179031,1758610247322,-480.0,0.00019178,2]
[387179032,1758610247331,-227.85052026,0.00019178,2]
[387179033,1758610247340,-485.46637418,0.00019178,2]
[387179034,1758610247350,-1664.5913467,0.00019202,2]
[387179035,1758610247359,-518.46599488,0.00019296,2]
[387179036,1758610247368,-1580.46743472,0.00019684,2]
[387179037,1758610247378,-151.38024723,0.00019771,2]
[387179038,1758610247387,-284.67596403,0.00019776,2]
[387179043,1758610454295,188.81164378,0.00029292,60]
[387179077,1758610810589,-1200.0,0.00018879,2]
[387179078,1758610810617,-1200.0,0.0001888,2]
[387179079,1758610810646,-300.0,0.0001888,2]
[387179080,1758610810674,-300.0,0.0001888,2]
[387179081,1758610810701,-300.0,0.0001888,2]
[387179082,1758610810729,-300.0,0.0001888,2]
[387179083,1758610810757,-300.0,0.0001888,2]
[387179084,1758610810784,-547.74317886,0.00018881,2]
[387179085,1758610811179,-783.00941056,0.00018881,2]
[387179089,1758610850567,-1407.96330486,0.00018881,2]
[387179090,1758610850595,-2259.32446919,0.00018881,2]
[387179091,1758610850629,-2665.4344519,0.00018881,2]
[387179092,1758610850768,-10000.01,0.0001899,2]
[387179093,1758610850918,-10000.01,0.0001899,2]
[387179094,1758610851029,-10000.01,0.0001899,2]
[387179095,1758610851184,-10000.01,0.0001899,2]
[387179096,1758610851308,-10000.01,0.0001899,2]
[387179097,1758610851438,-10000.01,0.0001899,2]
[387179098,1758610851631,-10000.01,0.0001899,2]
[387179099,1758610851749,-10000.01,0.0001899,2]
[387179100,1758610851882,-10000.01,0.0001899,2]
[387179101,1758610910405,-526.5432753,0.00018177,2]
[387179102,1758610910716,-738.851981,0.00018177,2]
[387179103,1758610910750,-8522.306038,0.0001899,2]
[387179155,1758611224315,-236.55179015,0.00018107,2]
[387179156,1758611227522,-250.0,0.00018107,2]
[387179158,1758611230785,-165.48631378,0.00018107,2]
[387179159,1758611232162,-155.63315733,0.00018107,2]
[387179160,1758611235674,-192.32873874,0.00018107,2]
[387179161,1758611239500,-187.12364866,0.00018177,2]
[387179162,1758611243188,-51.10079364,0.00018177,2]
[387179163,1758611284718,286.05,0.00015485,2]
[387179164,1758611285007,286.05,0.00015485,2]
[387179165,1758611285328,286.03,0.00015485,2]
[387179169,1758611416324,278.0973299,0.00017994,2]
[387179233,1758611432436,-158.014407,0.00018071,2]
[387179234,1758611432446,-178.2569661,0.00018094,2]
[387179245,1758611432559,-302.63686907,0.000189,2]
[387179247,1758611432570,-241.25228267,0.000189,2]
[387179249,1758611432580,-1477.603962,0.0001899,2]
[387179251,1758611432590,-2864.2269071,0.00018997,2]
[387179253,1758611432599,-724.0,0.00018999,2]
[387179255,1758611432608,-300.0,0.00018999,2]
[387179257,1758611432617,-1151.0,0.00018999,2]
[387179258,1758611432627,-500.0,0.00019,2]
[387179259,1758611432636,-500.0,0.00019,2]
[387179260,1758611432646,-500.0,0.00019,2]
[387179261,1758611432656,-500.0,0.00019,2]
[387179262,1758611432666,-3319.8012358,0.00019021,2]
[387179263,1758611432676,-1345.31217826,0.00019078,2]
[387179264,1758611432685,-656.92,0.00019168,3]
[387179265,1758611432695,-1216.25346553,0.00019177,2]
[387179266,1758611432705,-658.01844446,0.00019177,2]
[387179267,1758611432715,-253.95221508,0.00019177,2]
[387179268,1758611432725,-500.0,0.00019177,2]
[387179269,1758611432734,-250.36894592,0.00019177,2]
[387179270,1758611432744,-500.0,0.00019177,2]
[387179271,1758611432754,-500.0,0.00019177,2]
[387179272,1758611432764,-500.0,0.00019177,2]
[387179273,1758611432773,-500.0,0.00019177,2]
[387179274,1758611432783,-500.0,0.00019177,2]
[387179275,1758611432793,-500.0,0.00019177,2]
[387179276,1758611432802,-481.90002672,0.00019177,2]
[387179277,1758611432812,-500.0,0.00019177,2]
[387179278,1758611432822,-500.0,0.00019177,2]
[387179279,1758611432832,-500.0,0.00019177,2]
[387179280,1758611432841,-500.0,0.00019177,2]
[387179281,1758611432851,-500.0,0.00019177,2]
[387179282,1758611432860,-500.0,0.00019177,2]
[387179283,1758611432869,-500.0,0.00019177,2]
[387179284,1758611432879,-500.0,0.00019177,2]
[387179285,1758611432889,-500.0,0.00019177,2]
[387179286,1758611432899,-500.0,0.00019177,2]
[387179287,1758611432909,-500.0,0.00019177,2]
[387179288,1758611432918,-500.0,0.00019177,2]
[387179289,1758611432929,-500.0,0.00019177,2]
[387179290,1758611432938,-500.0,0.00019177,2]
[387179291,1758611432947,-500.0,0.00019177,2]